{"text_format":"1","workbook":"xlsx","n_sheets":3,"sheets":["Wachplan","Check in","Tag 1"],"not_rendered":{"charts":0,"images":0,"macros":1,"external_links":0,"defined_names":0,"comments":0,"pivot_tables":0},"unopened":[],"bounds":{"document_bytes":16777216,"sheet_cells":100000,"rows_first":2000,"rows_last":500,"rows_between":2000,"halvings":0,"cell_chars":16384,"cell_head_chars":4096},"cells_cut":0,"cells_raw":0,"read":"whole","date_system":"1900"}

{"sheet":"Wachplan","index":0,"n_rows":13,"n_cols":4,"rows_kept":13,"cut":false,"hidden":false,"merged":[[0,1,0,2]]}
["Wachplan",{"$f":"IF('Check in'!G1=\"\",\"\",'Check in'!G1)","v":"Kroatien"},null,{"$f":"IF('Check in'!B1=\"\",\"\",'Check in'!B1)","v":"2013-03-03"}]
["Tag","Wache","Backschaft","Sündenbock"]
[{"$f":"IF(D1=\"\",\"\",D1)","v":"2013-03-03"}]
[{"$f":"IFERROR(IF(A3+1=\"\",\"\",A3+1),\"\")","v":"2013-03-04"}]
[{"$f":"IFERROR(IF(A4+1=\"\",\"\",A4+1),\"\")","v":"2013-03-05"}]
["2013-03-06"]
["2013-03-07"]
["2013-03-08"]
["2013-03-09"]
["2013-03-10"]
["Bordkasse",null,"Wasser","Beiboot"]
["Kühlschrank",null,"Luken"]
["Strom",null,"Abfall"]

{"sheet":"Check in","index":1,"n_rows":13,"n_cols":11,"rows_kept":13,"cut":false,"hidden":false,"merged":[[2,0,2,2]]}
["Reise vom","2013-03-03","bis","2013-03-15",null,"Gebiet:","Kroatien",null,{"$f":"B1","v":"2013-03-03"},null,"Fahrttag 1"]
[]
["Logbuch",null,null,"Ort Abf.","Pula/Veruda",null,null,null,null,"Datum:",{"$f":"IF(B1=\"\",\"\",B1)","v":"2013-03-03"}]
[]
[null,null,null,null,"Check-In",null,"Check-Out","Differenz","Mängel"]
[null,null,null,null,null,null,null,{"$f":"IF(E6=\"\",\"\",G6-E6)","v":""}]
["Loggestand:",null,null,null,null,null,null,{"$f":"IF(E7=\"\",\"\",G7-E7)","v":""}]
["Motorstundenzähler:"]
["Ölkontrolle:"]
["Kühlwasser:"]
["Keilriemen:",null,null,null," "]
["Wasser:"]
["Diesel:"]

{"sheet":"Tag 1","index":2,"n_rows":26,"n_cols":11,"rows_kept":26,"cut":false,"hidden":false,"merged":[[2,0,2,2],[4,0,4,6],[4,7,4,9]]}
[{"$f":"'Check in'!A1","v":"Reise vom"},{"$f":"'Check in'!B1","v":"2013-03-03"},{"$f":"'Check in'!C1","v":"bis"},{"$f":"'Check in'!D1","v":"2013-03-15"},null,"Gebiet:",{"$f":"'Check in'!G1","v":"Kroatien"},null,{"$f":"K3","v":"2013-03-03"},null,"Fahrttag 1"]
[]
["Logbuch",null,null,"Ort Abf.","Pula/Veruda",null,null,"Ort Ank.",null,"Datum:",{"$f":"B1+RIGHT(K1,2)-1","v":"2013-03-03"}]
["Wetter:"]
["Eintrag stündlich",null,null,null,null,null,null,"Eintrag nur bei Änderungen"]
["Uhrzeit","Wind","See","Baro","Wetter","Kurs","Knoten","Standort","Motor","Segel","Besonderes"]
["Beispiel","NE 3",2,1010,"4/8",330,3,"Lt Porer querab","0900 an","GS GE","0900 Ablegen"]
[600]
[800]
[900]
[1000]
[1100]
[1200]
[1300]
[1400]
[1500]
[1600]
[1700]
[1800]
[1900]
[2000]
[2200]
["Logge:",null,null,null,"Seemeilen des Tages:",null,null,"Motorzeit des Tages:",null,"Treibstoffverbrauch:"]
["Logge Vortag:",null,null,null,"Seemeilen Vortag:",null,null,"Motorzeit Vortag:",null,"Treibstoff Vortag:"]
["Motorstunden:",null,null,null,"Seemeilen gesamt:",null,null,"Motorzeit gesamt:",null,"Treibst.verb. gesamt:"]
["Motorstunden Vortag:",null,null,null,null,null,null,null,null,"© Elisabeth Gantert"]